Cogmind - Beta 10.1 @@@ ROGUE MODE // 2020.10.15 @ 19:00:10 Player: MTF Result: Destroyed by 8R-AWN with 8R-AWN's Boregun Performance ------------- Evolutions (0) 0 Regions Visited (3) 600 Robots Destroyed (37) 185 Value Destroyed (840) 840 Prototype IDs (23) 460 Alien Tech Used (0) 0 Bonus (281) 281 TOTAL SCORE: 2366 Bonus ------- Follower Combat Kills 21 Aligned with FarCom 300 Friendly Fire -40 Cogmind --------- Core Integrity 0/250 Matter 48/300 Energy 98/100 System Corruption 3% Temperature Cool (0) Movement Treading (180) Ox1 Location -10/Exiles Parts ------- > --- POWER (1) -------- (None) > --- PROPULSION (2) --- Light Treads > --- UTILITY (2) ------ Medium Storage Unit Large Storage Unit > --- WEAPON (2) ------- Light Assault Rifle Light Assault Rifle > --- INVENTORY (14) --- Potential Leg Potential Leg Light Assault Rifle Light Assault Rifle Rocket Launcher Peak State ------------ > --- POWER ------------ Ion Engine > --- PROPULSION ------- Potential Leg Potential Leg > --- UTILITY ---------- Medium Storage Unit Large Storage Unit > --- WEAPON ----------- Firepult > --- INVENTORY -------- Light Treads Light Treads Light Treads Light Treads Light Treads Light Treads Assault Rifle Assault Rifle Assault Rifle Light Assault Rifle Light Assault Rifle Light Assault Rifle Light Assault Rifle Rocket Launcher [Rating: 44] Favorites ----------- Power Ion Engine Engine Ion Engine Propulsion Light Treads Treads Light Treads Leg Potential Leg Utility Medium Storage Unit Storage Medium Storage Unit Processor 0b10 Alert Chip Weapon Light Assault Rifle Energy Gun Small Laser Energy Cannon Firepult Ballistic Gun Light Assault Rifle Launcher Rocket Launcher Build | -11 -10 -10 -10 ------- Run | Scr Mat Min Exi Slots Evolved . | . . . . Power . | . . . . Propulsion . | . . . . Utility . | . . . . Weapon . | . . . . Parts Attached 38 | . 14 5 19 Power 3 | . 1 2 . Engine 3 | . 1 2 . Core . | . . . . Reactor . | . . . . Propulsion 11 | . 2 1 8 Treads 9 | . 2 1 6 Leg 2 | . . . 2 Wheel . | . . . . Hover . | . . . . Flight . | . . . . Utility 5 | . 2 . 3 Device . | . . . . Storage 4 | . 2 . 2 Processor 1 | . . . 1 Hackware . | . . . . Protection . | . . . . Artifact . | . . . . Weapon 19 | . 9 2 8 Energy Gun . | . . . . Energy Cannon 1 | . . . 1 Ballistic Gun 12 | . 5 . 7 Ballistic Cannon . | . . . . Launcher 6 | . 4 2 . Special Weapon . | . . . . Impact Weapon . | . . . . Slashing Weapon . | . . . . Piercing Weapon . | . . . . Special Melee Weapon . | . . . . Unidentified Prototypes . | . . . . Parts Lost 11 | . 1 1 9 Power 2 | . . 1 1 Propulsion 5 | . . . 5 Utility . | . . . . Weapon 4 | . 1 . 3 Highest Loss Streak 6 | . 1 1 6 Average Slot Usage (%) 98 | . 97 99 97 Engine 13 | . 14 13 13 Treads 25 | . 27 28 22 Leg 2 | . . . 4 Storage 27 | . 25 28 27 Ballistic Gun 17 | . 23 14 13 Launcher 9 | . 3 13 12 Naked Turns . | . . . . Heaviest Build 51 | 11 21 22 51 Greatest Support 60 | 20 40 40 60 Greatest Overweight (x) . | . . . . Average Overweight (x) . | . . . . Largest Inventory Capacity 14 | 6 10 10 14 Average Capacity 10 | 6 8 10 13 Most Carried 14 | 6 10 10 14 Average Carried 10 | 6 8 9 11 Final Capacity 14 | 6 10 10 14 Final Carried 10 | 6 10 10 5 Class Distribution -------------------- 100% | Mutant Dominant Class ---------------- Mutant | -10/Materials Mutant | -10/Mines Mutant | -10/Exiles Resources | -11 -10 -10 -10 ----------- Run | Scr Mat Min Exi Matter Collected 834 | 209 373 185 67 Remotely . | . . . . Salvage Created 1134 | 68 910 156 . Parts 71 | 1 59 11 . Haulers Intercepted 1 | . 1 . . Recyclers Shooed 3 | . 3 . . Parts Field Recycled . | . . . . Retrieved Matter . | . . . . Parts Self-Destructed . | . . . . Prevented . | . . . . Kills | -11 -10 -10 -10 ------- Run | Scr Mat Min Exi Combat Hostiles Destroyed 22 | . 15 4 3 Guns 6 | . 6 . . AOE 16 | . 9 4 3 Classes Destroyed 8 | 1 6 . 1 Worker 2 | . 1 1 . Builder 1 | . 1 . . Hauler 1 | . 1 . . Recycler 5 | 1 3 1 . Operator 3 | . 3 . . Watcher 3 | . 3 . . Grunt 19 | . 15 4 . Assembled 3 | . . . 3 Best Kill Streak 6 | 1 6 3 3 Combat Bots Only 5 | . 5 2 3 Max Kills in Single Turn 5 | 1 5 1 2 Gunslinging . | . . . . Exploded 4 | . 4 1 2 Melee . | . . . . Uniques/NPCs Destroyed . | . . . . Combat | -11 -10 -10 -10 -------- Run | Scr Mat Min Exi Damage Taken 1717 | . 500 58 1159 Core 258 | . 79 . 179 Absorbed by Shields . | . . . . Core Remaining (%) 100 | 100 . . . Volleys Fired 102 | 9 52 6 35 Largest 2 | 2 2 1 2 Hottest 60 | 60 40 33 40 Shots Fired 159 | 15 93 6 45 Gun 140 | 15 86 . 39 Cannon . | . . . . Launcher 19 | . 7 6 6 Special . | . . . . Kinetic 134 | 9 86 . 39 Thermal 6 | 6 . . . Explosive 19 | . 7 6 6 Electromagnetic . | . . . . Robot Hit Streak 21 | 3 21 9 14 Robot Miss Streak 4 | 4 3 1 2 Penetration Max . | . . . . Secondary Targets . | . . . . Shots Hit Robots 114 | 8 68 4 34 Core Hits 75 | 3 48 10 14 Critical Hits 2 | . 1 . 1 Critical Kills . | . . . . Critical Parts Destroyed 1 | . 1 . . Melee Attacks . | . . . . Impact . | . . . . Slashing . | . . . . Piercing . | . . . . Sneak Attacks . | . . . . Combat Hostiles . | . . . . Follow-up Attacks . | . . . . Damage Inflicted 2618 | 75 1324 325 894 Guns 1101 | 75 656 . 370 Cannons . | . . . . Explosions 1222 | . 639 310 273 Melee . | . . . . Ramming 295 | . 29 15 251 Kinetic 1058 | 32 656 . 370 Thermal 43 | 43 . . . Explosive 1222 | . 639 310 273 Electromagnetic . | . . . . Impact . | . . . . Slashing . | . . . . Piercing . | . . . . Highest Corruption 3 | . 3 3 3 Average Corruption 2 | . 2 3 3 Corruption Purged . | . . . . Effects 66 | . 18 18 30 Message Errors 24 | . 5 5 14 Matter Fused 18 | . 5 7 6 Heat Flow Errors 9 | . 3 2 4 Energy Discharges 6 | . 2 2 2 Data Loss (minor) 5 | . 1 2 2 Targeting Errors 4 | . 2 . 2 Overload Shots . | . . . . Overflow Damage 45 | . 5 . 40 Projectiles . | . . . . Explosions 26 | . 5 . 21 Melee 19 | . . . 19 Knockbacks 1 | . . . 1 Impact 1 | . . . 1 Kinetic . | . . . . Secondary . | . . . . Self-Inflicted Damage 186 | . 83 . 103 Shots 5 | . 4 . 1 Rammed 22 | . 8 4 10 Targets Rammed 28 | . 8 5 15 Kicked 5 | . . . 5 Crushed 1 | . . 1 . Highest Temperature 279 | 20 196 279 274 Average Temperature 79 | 15 51 89 118 Received Heat Transfer 273 | . 240 33 . Siege Activations . | . . . . Robots Corrupted . | . . . . Combat Hostiles . | . . . . Parts Fried . | . . . . Impact Corruptions 3 | . . . 3 Robots Melted . | . . . . Combat Hostiles . | . . . . Parts Melted . | . . . . Heat Transferred 100 | 100 . . . Parts Sabotaged . | . . . . Parts Stolen . | . . . . Parts Stripped . | . . . . Power Chain Reactions . | . . . . Missiles Intercepted . | . . . . Alert | -11 -10 -10 -10 ------- Run | Scr Mat Min Exi Peak Influence 282 | 5 282 195 . Initial 100 | . 3 100 . Average 125 | 2 182 65 . Maximum Alert Level 1 | . 1 . . Low Security (%) 75 | 100 53 100 . Level 1 24 | . 46 . . Level 2 . | . . . . Level 3 . | . . . . Level 4 . | . . . . Level 5 . | . . . . High Security . | . . . . Max Security . | . . . . Squads Dispatched 5 | . 5 . . Investigation 3 | . 3 . . Extermination . | . . . . Reinforcement 2 | . 2 . . Assault . | . . . . Garrison . | . . . . Intercept . | . . . . Construction Impeded . | . . . . Haulers Reinforced . | . . . . Stealth | -11 -10 -10 -10 --------- Run | Scr Mat Min Exi Distress Signals 4 | . 4 . . Communications Jammed . | . . . . Distress Signals . | . . . . Times Spotted 43 | . 32 7 4 Peak Tracking Total 9 | . 8 3 9 Tactical Retreats . | . . . . Traps | -11 -10 -10 -10 ------- Run | Scr Mat Min Exi Traps Triggered 3 | . 3 . . Indirectly . | . . . . Trap Hack Attempts . | . . . . Triggered . | . . . . Disarmed . | . . . . Reprogrammed . | . . . . Reused . | . . . . Traps Extracted . | . . . . Installed . | . . . . Triggered . | . . . . Exploded 3 | . . . 3 Machines | -11 -10 -10 -10 ---------- Run | Scr Mat Min Exi Machines Disabled 5 | . 1 . 4 Max in Single Turn 2 | . 1 . 2 Machines Sabotaged . | . . . . Garrisons Compromised . | . . . . Overloaded Fab Kills . | . . . . Fab Network Shutdowns . | . . . . Hacking | -11 -10 -10 -10 --------- Run | Scr Mat Min Exi Machines Accessed 7 | . 5 . 2 Terminals 3 | . 3 . . Fabricators . | . . . . Repair Stations . | . . . . Recycling Units 2 | . 2 . . Scanalyzers . | . . . . Garrison Access . | . . . . Total Hacks 19 | . 17 . 2 Successful 11 | . 9 . 2 Failed 8 | . 8 . . Catastrophic . | . . . . Database Lockouts . | . . . . Manual 12 | . 11 . 1 Terminals 15 | . 15 . . Fabricators . | . . . . Repair Stations . | . . . . Recycling Units 2 | . 2 . . Scanalyzers . | . . . . Garrison Access . | . . . . Terminal Hacks 7 | . 5 . 2 Record 1 | . . . 1 Robot Analysis 2 | . 2 . . Locate Traps 1 | . 1 . . Hauler Manifests 1 | . 1 . . Zone Layout 1 | . 1 . . EX-Prototype ID Bank 1 | . . . 1 Fabricator Hacks . | . . . . Repair Station Hacks . | . . . . Recycling Unit Hacks . | . . . . Scanalyzer . | . . . . Garrison Access Hacks . | . . . . Unauthorized Hacks 4 | . 4 . . Terminals 2 | . 2 . . Track 1 | . 1 . . Assimilate 1 | . 1 . . Fabricators . | . . . . Repair Stations . | . . . . Recycling Units 2 | . 2 . . Tunnel 2 | . 2 . . Scanalyzers . | . . . . Garrison Access . | . . . . Data Cores Recovered . | . . . . Used . | . . . . Hacking Detections 3 | . 3 . . Full Trace Events . | . . . . Feedback Events . | . . . . Feedback Blocked . | . . . . Robot Schematics Acquired . | . . . . Robots Built . | . . . . Matter . | . . . . Time . | . . . . Total Robot Build Rating . | . . . . Part Schematics Acquired . | . . . . Parts Built . | . . . . Matter . | . . . . Time . | . . . . Total Part Build Rating . | . . . . Parts Repaired . | . . . . Time . | . . . . Parts Recycled . | . . . . Recycled Matter . | . . . . Retrieved Matter . | . . . . Retrieved Components . | . . . . Parts Scanalyzed . | . . . . Part Schematics Acquired . | . . . . Parts Damaged . | . . . . Bothacking | -11 -10 -10 -10 ------------ Run | Scr Mat Min Exi Used RIF Installer . | . . . . Robots Hacked . | . . . . Non-combat . | . . . . Combat . | . . . . Robot Hacks Applied . | . . . . Relay Couplers Released . | . . . . Robots Rewired . | . . . . Allies Hacked . | . . . . Hacks Repelled . | . . . . Allies | -11 -10 -10 -10 -------- Run | Scr Mat Min Exi Total Allies 4 | . 1 3 . Largest Group 3 | . . 3 2 Highest-Rated Group 40 | . . 40 24 Highest-Rated Ally 16 | . . 16 16 Total Orders 2 | . . . 2 STAY 2 | . . . 2 Ally Attacks 14 | . . 14 . Total Damage 138 | . . 138 . Kills 3 | . . 3 . Allies Corrupted . | . . . . Allies Melted . | . . . . Intel | -11 -10 -10 -10 ------- Run | Scr Mat Min Exi Robot Analysis Total 2 | . 2 . . Derelict Logs Recovered 1 | . . 1 . Drone Launches . | . . . . Drone Recoveries . | . . . . Exploration | -11 -10 -10 -10 ------------- Run | Scr Mat Min Exi Turns Passed 3511 | 48 1108 976 1379 Spaces Moved 1941 | 22 553 578 788 Core . | . . . . Treads 1755 | . 540 578 637 Legs 186 | 22 13 . 151 Wheels . | . . . . Hover . | . . . . Flight . | . . . . Fastest Speed 45 | 120 120 160 45 Average Speed 153 | 120 159 160 146 Slowest Speed 160 | 120 160 160 160 Overloaded Moves 1 | . . . 1 Propulsion Burnouts . | . . . . Robots Hopped . | . . . . Cave-ins Triggered . | . . . . Exploration Rate (%) 62 | 3 79 97 70 Regions Visited 3 Branch Regions 2 Pre-discovered Areas 3 | . 2 . 1 Known Exits Taken . | . . . . Unknown Exits Taken 3 | 1 1 1 . Scrap Searched 2 | . . 2 . Spaces Dug 39 | . 19 12 8 Terrain Destroyed 156 | . 45 73 38 Melee . | . . . . Projectile . | . . . . AOE 156 | . 45 73 38 Terrain Rammed . | . . . . Walls Destroyed . | . . . . Machines Disabled . | . . . . Actions | -11 -10 -10 -10 --------- Run | Scr Mat Min Exi Total 2315 | 30 690 623 972 Wait 146 | . 49 16 81 Move 1938 | 21 552 577 788 Hop . | . . . . Pick Up 33 | . 9 7 17 Fast Attach 5 | . 1 1 3 Attach 11 | . 1 1 9 Detach 2 | . . . 2 Swap 22 | . 12 3 7 Drop 28 | . 6 7 15 Fire 102 | 9 52 6 35 Melee . | . . . . Ram . | . . . . Kick 14 | . . . 14 Crush 14 | . 8 5 1 Escape Stasis . | . . . . Rewire . | . . . . Trap . | . . . . Miscellaneous . | . . . . Route ------- -11/Scrapyard -10/Materials (discovered 3 exits: [*Mat x2] / [*Min]) -10/Mines (discovered 3 exits: [*Mat x2] / *Exi) -10/Exiles (discovered 1 exit: [*Min]) History --------- Turn | Location | Event 15 | -11/Scrapyard | Discovered new exit (range 3) 49 | -11/Scrapyard | Entered Materials 261 | -10/Materials | Discovered new exit (range 15) 309 | -10/Materials | Build established: Mutant 662 | -10/Materials | Discovered new exit (range 7) 815 | -10/Materials | Discovered new exit (range 14) 1157 | -10/Materials | Entered Mines 1233 | -10/Mines | Received a Rocket Launcher from a helpful Derelict 1354 | -10/Mines | A weapon hastily lodged in a ceiling crevice suddenly fell to the ground 1584 | -10/Mines | Assisted by bots powering up and referring to "LRC-V3" 1751 | -10/Mines | Discovered new exit (range 8) 1755 | -10/Mines | Learned Materials security intel 1987 | -10/Mines | Discovered new exit (range 5) 2124 | -10/Mines | Deemed a non-threat by the Exiles lab entrance 2125 | -10/Mines | Discovered new exit (range 5) 2133 | -10/Mines | Entered Exiles 2133 | -10/Exiles | Accompanied by 2 allies 2177 | -10/Exiles | Met 8R-AWN 2201 | -10/Exiles | Met EX-HEX 2262 | -10/Exiles | Met EX-DEC 2344 | -10/Exiles | Learned location of Zion (-7) 2491 | -10/Exiles | Met EX-BIN 2510 | -10/Exiles | Aligned with FarCom system 2512 | -10/Exiles | Given EX-Vault access code 2549 | -10/Exiles | Opened EX-Vault 2557 | -10/Exiles | Found 0b10 Alert Chip 2562 | -10/Exiles | Found Firepult 2568 | -10/Exiles | Found Potential Leg 2574 | -10/Exiles | Found Potential Leg 2653 | -10/Exiles | Warned to stay clear of 0b10 Research branches 2838 | -10/Exiles | Discovered new exit (range 11) 3315 | -10/Exiles | Attacked by the Exiles 3447 | -10/Exiles | Core integrity fell below 50% 3483 | -10/Exiles | Lost 6 parts (1p3n2w) 3504 | -10/Exiles | Core integrity fell below 20% 3512 | -10/Exiles | Destroyed by 8R-AWN with 8R-AWN's Boregun Last Messages --------------- 03479_ System corrupted: Matter fused (-8). 03479_ HV Slug penetrates Wall. 03479_ Penetrated by HV Slug. 03479_ HV Slug penetrates Machine. 03483_ Penetrated by HV Slug. 03483_ HV Slug penetrates Wall. 03483_ Penetrated by HV Slug. 03483_ HV Slug penetrates Wall. 03487_ Penetrated by HV Slug. 03489_ Destroyed Prototype Protection. 03490_ Penetrated by HV Slug. 03490_ Critical hit. 03490_ Lgt. Treads destroyed. 03495_ Penetrated by HV Slug. 03499_ Critical hit. 03499_ Lgt. Treads destroyed. 03503_ Penetrated by HV Slug. 03507_ Assault Rifle destroyed. 03512_ System corrupted: Matter fused (-10). 03512_ Penetrated by HV Slug. Map ----- +----------------------------------------------------+ | ???????????????????????????????????????????? | | ???????????????????????????????????????????? | | ???????????????????????????????????????????? | | ???????????????????????????????????????????? | | ???????????????????????????????????????????? | | ???????????????????????????????????????????? | | ???????????????????????????????????????????? | | ???????????????????????????????????????????? | | ???????????????????????????????????????????? | | ???????????????????????????????????????????? | | ???????????????????????????????????????????? | | ???????????????????????????????????????????? | | ???????????????????????????????????????????? | | ???????????????????????????????????????????? | | ???????????????????????????????????????????? | | ???????????????????????????????????????????? | | ????????????????#####??????????????????????? | | ???????????????## ##?????????????????????? | | ???????????????# #?????????????????????? | | ???????????????# < ;?????????????????????? | | ???????????????# ###???????????????????? | | ???????????????# #???????????????????? | | ???????????????# ##???????????????????? | | ???????????????## #????????????????????? | | ????????????????# g ##???????????????????? | | ????????????????## @ #????????????#######? | | ?????????????????# #######??????# "#? | | ???????????????? ; #""##?????# "#? | | ???????????????#### #?????# "#? | | ??????????????????#; ##???## ""#? | | ??????????????????# #####" ""#? | | ??????????????????#;## ##" ""#? | | ??????????????????# ### #"" ###? | | ??????????????????# #?#"## #### | | ??????????????????? ??####### | | ??????????????????? ????????## | | ??????????????????? ??######## | | ??????????????????? ??# !!"""" | | ??????????????????? ??#! # | | ??????????????????? ??#! ! # | | ??????????????????? ??#! !!# | | ??????????????????????# !"""""" ##### | | ??????????????????????############???### | | ????????????????????????????????????????# | | ??????????????????????????????????????????# | | ???????????????????????????????????????????? | | ???????????????????????????????????????????? | | ???????????????????????????????????????????? | | ???????????????????????????????????????????? | | ???????????????????????????????????????????? | +----------------------------------------------------+ Best States ------------- Heat Dissipation 25 Energy Generation 10 Energy Capacity 250 Matter Stores 300 Matter Capacity 300 Sight Range 16 Terrain Scan Density 10 Evasion (%) 42 Recoil Reduction 2 Item Schematics ----------------- None Robot Schematics ------------------ None Fabricated ------------ Nothing Alien Tech Used ----------------- None Achievements -------------- None Challenges ------------ None Game ------ Seed AssaultOverloadNullifier Manual? 0 Play Time 00:27:38 Cumulative 927.0 hours Start 2020.10.15 @ 18:33:29 End 2020.10.15 @ 19:00:10 Sessions 1 Manual Loads 0 Difficulty Rogue Special Mode None Game No. 326 Rogue 326 Adventurer 0 Explorer 0 Win Type - Total 49 Types 11/14/9/3/1/1/8/1/1 Lore% 97 Gallery% 95 Achievement% 84 Wizard Run 0 Options --------- ASCII 0 Keyboard 0 Movement Numpad Keybinds 0 Fullscreen 2 Font 24/Smallcaps Map View 76x50 Tactical HUD 1 Map Filters NONE Filters NONE Steam 1 RUN: 4fb43fae-1c61-4cec-8559-6b74c7565a7d